bitfinex/quotes_ETHUSD_20260313
["timestamp","ask_amount","ask_price","bid_price","bid_amount"]
[1773371949666,1.53313857,2108.7,2108.5,1.816]
[1773371950789,1.53066514,2108.8,2108.5,3.77463109]
[1773371951083,2.71346909,2109.2,2108.6,1.95863109]
[1773371951372,1.52818558,2109.2,2108.6,1.95863109]
[1773371951576,1.54955123,2109.3,2108.7,1.95863109]
[1773371951775,0.36426879,2109.3,2108.9,1.95863109]
[1773371951978,1.54950032,2109.3,2108.9,1.95863109]
[1773371952279,0.36426879,2109.3,2108.9,1.95863109]
[1773371952777,1.54950661,2109.3,2108.9,1.95863109]
[1773371953390,0.002,2109.0,2108.9,1.95863109]
[1773371954244,0.002,2109.0,2108.9,3.14408322]
[1773371954440,0.002,2109.0,2108.9,1.95863109]
[1773371954778,0.36426879,2109.3,2109.0,1.95863109]
[1773371955066,0.36426879,2109.3,2109.2,1.95863109]
[1773371956258,1.50564926,2109.2,2108.9,1.95863109]
[1773371956455,1.50564926,2109.2,2108.9,1.95783109]
[1773371956784,1.54952964,2109.3,2108.9,1.95783109]
[1773371957652,1.54952964,2109.3,2109.0,3.77563109]
[1773371957850,0.36426879,2109.3,2109.1,1.95863109]
[1773371958451,1.54950345,2109.3,2109.1,1.95863109]
[1773371958757,1.49489967,2109.2,2108.8,2.308505]
[1773371958956,1.49489967,2109.2,2108.9,1.817]
[1773371960078,2.68021312,2109.2,2108.9,3.77563109]
[1773371960773,0.36426879,2109.3,2109.1,1.96157929]
[1773371960961,1.54950445,2109.3,2109.1,1.96157929]
[1773371961163,1.5494969,2109.3,2109.1,1.96157929]
[1773371961882,0.36426879,2109.3,2109.1,1.96157929]
[1773371962761,0.36426879,2109.3,2109.2,4.69451929]
[1773371963365,1.54949611,2109.3,2109.0,1.96157929]
[1773371963571,3.01409465,2109.3,2109.1,1.818]
[1773371964181,3.01409465,2109.3,2108.9,1.96157929]
[1773371964674,0.36426879,2109.3,2109.0,2.00899512]
[1773371965406,0.36426879,2109.3,2109.1,3.77957929]
[1773371965572,0.30789119,2109.3,2109.2,1.96157929]
[1773371966276,0.30789119,2109.3,2109.1,1.819]
[1773371966277,1.49513209,2109.3,2109.1,0.001]
[1773371966474,1.44802931,2109.2,2109.1,0.001]
[1773371966783,1.44802931,2109.2,2109.1,1.819]
[1773371967079,1.44802931,2109.2,2108.9,1.96257929]
[1773371968585,1.18533971,2109.1,2109.0,1.818]
[1773371969087,1.18533971,2109.1,2108.7,1.96157929]
[1773371969262,0.30989119,2109.3,2108.6,1.18658493]
[1773371969263,0.30989119,2109.3,2109.1,1.96157929]
[1773371969585,3.09257634,2109.5,2108.9,1.96157929]
[1773371970466,1.18511495,2109.5,2109.0,3.77957929]
[1773371970785,1.18708646,2109.6,2109.1,1.96157929]
[1773371970973,1.18708646,2109.6,2109.3,1.96157929]
[1773371970974,0.002,2109.6,2109.3,1.96157929]
[1773371971374,1.18486455,2110.0,2109.5,1.96157929]
[1773371971581,1.18486455,2110.0,2109.7,1.96157929]
[1773371971759,1.90826139,2109.8,2109.0,1.96157929]
[1773371971959,1.90826139,2109.8,2109.2,2.76066765]
[1773371972286,1.18486455,2110.0,2109.3,1.96157929]
[1773371972453,1.90826139,2109.9,2109.3,1.96157929]
[1773371972658,3.09320783,2109.8,2109.3,3.14675968]
[1773371972858,1.90826139,2109.8,2109.4,1.96157929]
[1773371974493,5.53819437,2110.3,2109.4,1.96157929]
[1773371974494,1.90826139,2110.3,2109.4,1.96157929]
[1773371974662,1.90826139,2110.1,2109.5,1.819]
[1773371974864,1.90826139,2110.1,2109.4,1.96157929]
[1773371975064,1.90826139,2110.1,2109.5,1.815]
[1773371975463,1.90826139,2110.1,2109.3,1.96157929]
[1773371975774,1.90826139,2110.1,2109.4,3.77257929]
[1773371976588,1.90826139,2109.9,2109.4,1.811]
[1773371976789,1.90826139,2109.9,2109.4,3.81998613]
[1773371977408,1.90826139,2109.9,2109.2,1.96157929]
[1773371977703,3.09309551,2110.0,2109.6,1.96157929]
[1773371977898,1.90826139,2109.9,2109.5,1.812]
[1773371978799,1.18494644,2109.8,2109.5,1.812]
[1773371978998,1.18494644,2109.8,2109.6,0.001]
[1773371979174,0.002,2109.7,2109.6,0.001]
[1773371980425,0.002,2109.7,2109.6,1.96257929]
[1773371980895,1.91026139,2110.2,2109.7,1.96157929]
[1773371981285,1.91026139,2110.2,2109.6,0.001]
[1773371981589,1.90826139,2110.0,2109.7,1.814]
[1773371982197,1.90826139,2110.0,2109.6,0.001]
[1773371982488,0.79908836,2110.1,2109.6,0.001]
[1773371982694,1.90826139,2110.0,2109.6,1.96257929]
[1773371982902,3.09315166,2109.9,2109.6,1.96257929]
[1773371983370,3.09315166,2109.9,2109.7,1.815]
[1773371983769,1.18489027,2109.9,2109.7,1.815]
[1773371984198,1.18489027,2109.9,2109.6,1.96257929]
[1773371984806,4.73956111,2110.0,2109.6,1.96257929]
[1773371984988,4.73956111,2110.0,2109.6,1.95141417]
[1773371985187,1.88512266,2109.9,2109.6,1.95141417]
[1773371985409,4.73956111,2110.0,2109.7,1.816]
[1773371985910,6.62468377,2110.0,2109.7,1.816]
[1773371986109,6.62468377,2110.0,2109.6,1.95141417]
[1773371987104,1.88512266,2109.9,2109.6,0.001]
[1773371987601,1.88512266,2109.9,2109.7,1.816]
[1773371988282,1.88512266,2109.9,2109.6,0.001]
[1773371989202,1.18494644,2109.8,2109.6,0.001]
[1773371989711,1.18494644,2109.8,2109.7,1.816]
[1773371990006,3.0700691,2109.8,2109.7,1.816]
[1773371990215,3.0700691,2109.8,2109.6,0.001]
[1773371991813,1.18494644,2109.8,2109.6,0.001]
[1773371992012,1.18494644,2109.8,2109.7,1.816]
[1773371992311,6.67446515,2110.0,2109.6,1.92486092]
[1773371992503,1.18486305,2110.0,2109.6,1.92486092]
[1773371992812,0.80108836,2110.2,2109.6,1.92486092]
[1773371992813,1.18675873,2110.2,2109.6,1.92486092]
[1773371993011,1.18675873,2110.2,2109.7,1.92386092]
[1773371993217,1.18675873,2110.2,2109.5,1.92386092]
[1773371993218,3.12190431,2109.9,2109.5,1.92386092]
[1773371993511,3.12190431,2109.9,2109.6,0.04611494]
[1773371993718,1.18689027,2109.9,2109.6,1.96997586]
[1773371994310,1.18689027,2109.9,2109.7,1.816]
[1773371994710,0.002,2109.9,2109.7,3.73986092]
[1773371994886,0.002,2109.9,2109.8,1.92386092]
[1773371995089,0.002,2109.9,2109.7,1.816]
[1773371995318,0.002,2109.9,2109.7,3.73986092]
[1773371995719,0.002,2109.9,2109.7,1.816]
[1773371996017,1.93701404,2109.9,2109.7,1.816]
[1773371997700,3.12194381,2109.9,2109.7,1.816]
[1773371998421,1.93501404,2109.8,2109.5,1.92386092]
[1773371998617,0.002,2109.9,2109.5,1.92386092]
[1773372000219,0.002,2109.9,2109.7,1.92386092]
[1773372000618,0.002,2110.2,2109.7,1.92386092]
[1773372000619,1.93701404,2110.2,2109.7,1.92386092]
[1773372001192,1.93501404,2110.1,2109.5,1.92386092]
[1773372001395,1.93501404,2110.1,2109.6,1.816]
[1773372002002,1.93501404,2110.1,2109.7,1.817]
[1773372002216,1.18483412,2110.0,2109.7,1.817]
[1773372002410,3.11984816,2110.0,2109.7,1.817]
[1773372002734,3.11984816,2110.0,2109.7,3.74086092]
[1773372003122,1.93501404,2110.1,2109.7,1.817]
[1773372003300,1.18675568,2110.2,2109.7,3.74086092]
[1773372003503,1.18675568,2110.2,2109.8,1.92386092]
[1773372003701,1.18672408,2110.2,2109.8,1.92386092]
[1773372004207,1.18672408,2110.2,2109.8,1.1849084]
[1773372004208,0.002,2110.2,2109.8,1.1849084]
[1773372004511,0.002,2110.2,2109.9,1.92386092]
[1773372004701,0.002,2110.2,2109.9,1.92486092]
[1773372004898,1.93701404,2110.2,2109.9,0.001]
[1773372005229,1.93501404,2110.1,2109.9,0.001]
[1773372005593,1.93701404,2110.1,2109.9,0.001]
[1773372006203,1.18483412,2110.0,2109.9,0.001]
[1773372006720,1.18483412,2110.0,2109.9,1.818]
[1773372007233,1.18483412,2110.0,2109.6,1.97226327]
[1773372007432,0.002,2110.1,2109.7,1.92386092]
[1773372007632,1.18677952,2110.1,2109.7,1.92386092]
[1773372008006,1.93501404,2110.0,2109.6,0.001]
[1773372008207,1.93501404,2110.0,2109.6,0.04840235]
[1773372008402,1.18489027,2109.9,2109.6,1.97226327]
[1773372008629,1.18487923,2110.0,2109.6,1.97226327]
[1773372008841,1.18487923,2110.0,2109.7,3.73986092]
[1773372009003,1.18680749,2110.1,2109.7,3.73986092]
[1773372009204,1.18677907,2110.1,2109.8,1.92386092]
[1773372009515,1.18677969,2110.1,2109.8,1.97125877]
[1773372010253,0.002,2110.1,2109.8,1.97125877]
[1773372010611,0.002,2110.1,2109.9,1.92386092]
[1773372011848,1.93701404,2110.1,2109.7,3.73986092]
[1773372013214,3.12184668,2110.1,2109.7,3.73986092]
[1773372015942,1.93701404,2110.1,2109.8,1.92386092]
[1773372016238,1.93501404,2110.0,2109.7,1.92386092]
[1773372016548,1.93501404,2110.0,2109.6,1.97226327]
[1773372017159,1.18677977,2110.1,2109.7,1.92386092]
[1773372017445,0.002,2110.1,2109.8,3.78825877]
[1773372017617,0.002,2110.1,2109.8,3.74086092]
[1773372018218,0.002,2110.1,2109.8,3.78825877]
[1773372018645,0.002,2110.1,2109.8,3.74086092]
[1773372018827,0.002,2110.1,2109.9,1.97125653]
[1773372019144,1.93701404,2110.1,2109.9,0.001]
[1773372019519,1.18483412,2110.0,2109.9,0.001]
[1773372020161,1.18483412,2110.0,2109.6,1.18603129]
[1773372020162,3.11984816,2110.0,2109.6,0.001]
[1773372020341,1.93501404,2109.9,2109.6,0.001]
[1773372020734,1.93501404,2109.9,2109.6,3.05701393]
[1773372021349,1.93501404,2109.9,2109.6,1.87196909]
[1773372021650,1.93501404,2109.9,2109.7,1.817]
[1773372022060,3.11991602,2109.9,2109.7,1.817]
[1773372022247,1.84524468,2109.8,2109.6,0.001]
[1773372023827,3.03024728,2109.7,2109.6,0.001]
[1773372024028,3.03024728,2109.7,2109.6,1.818]
[1773372025342,3.03017114,2109.9,2109.6,1.818]
[1773372025523,1.84524468,2110.4,2109.7,1.82356674]
[1773372025726,1.84524468,2110.3,2109.6,1.818]
[1773372025934,1.84524468,2110.1,2109.6,1.818]
[1773372027028,1.84524468,2110.1,2109.6,3.64156674]
[1773372028331,1.18483412,2110.0,2109.6,4.8266236]
[1773372029867,1.18483412,2110.0,2109.7,1.82356674]
[1773372030051,1.18483412,2110.0,2109.7,1.82276674]
[1773372031173,3.03007457,2110.1,2109.7,1.82276674]
[1773372031466,3.03007457,2110.1,2109.6,1.818]
[1773372031467,1.84524468,2110.0,2109.6,1.818]
[1773372031758,1.84524468,2110.0,2109.8,0.001]
[1773372032138,1.84724468,2109.9,2109.8,0.001]
[1773372033974,1.84724468,2109.9,2109.8,1.819]
[1773372034466,3.03213495,2109.9,2109.8,1.819]
[1773372035037,1.9341019,2109.8,2109.6,0.001]
[1773372035237,1.9341019,2109.8,2109.4,1.564]
[1773372035238,1.9341019,2109.8,2109.4,0.001]
[1773372035543,1.9341019,2109.7,2109.4,0.001]
[1773372036342,1.9341019,2109.5,2109.4,0.001]
[1773372037471,1.9341019,2109.5,2109.1,0.001]
[1773372037790,1.9341019,2109.5,2109.2,1.818]
[1773372038364,1.9341019,2109.3,2108.9,2.96496518]
[1773372038587,3.11938541,2109.2,2108.9,2.96496518]
[1773372039569,3.11938541,2109.2,2109.0,1.818]
[1773372040171,3.11938541,2109.2,2108.9,2.96496518]
[1773372041749,3.11938541,2109.2,2109.0,1.818]
[1773372042164,3.11938541,2109.2,2108.9,2.96496518]
[1773372043871,3.11938541,2109.2,2109.0,1.818]
[1773372044774,1.90582348,2109.1,2109.0,1.818]
[1773372045889,1.90582348,2109.7,2109.2,1.86388777]
[1773372046182,0.002,2110.1,2109.7,1.86388777]
[1773372046472,0.002,2110.1,2109.9,1.86388777]
[1773372046682,0.002,2110.1,2110.0,3.68188777]
[1773372048656,0.002,2110.1,2110.0,4.86672189]
[1773372049654,0.002,2110.1,2110.0,3.68188777]
[1773372050378,0.002,2110.1,2110.0,4.86672189]
[1773372050773,0.002,2110.1,2110.0,3.68188777]
[1773372050952,0.002,2110.1,2110.0,4.86672189]
[1773372051981,0.002,2110.1,2110.0,3.68188777]
[1773372052181,0.002,2110.2,2110.1,2.0121906]
[1773372052380,4.73754628,2110.8,2110.1,2.0121906]
[1773372052381,6.56991092,2111.1,2110.5,2.0121906]
[1773372052585,1.83283728,2111.0,2110.5,2.2591906]
[1773372053080,1.18423847,2111.1,2110.5,2.2591906]
[1773372053293,1.18423847,2111.1,2110.7,2.0121906]
[1773372053782,1.83283728,2111.0,2110.6,1.818]
[1773372054459,1.18432895,2110.9,2110.6,1.818]
[1773372055294,0.7850859,2111.2,2110.6,3.8301906]
[1773372055295,3.01705403,2111.1,2110.6,3.8301906]
[1773372055655,3.01705403,2111.1,2110.6,5.01468192]
[1773372055856,0.7850859,2111.2,2110.7,2.0121906]
[1773372056484,0.7850859,2111.2,2110.8,1.18438506]
[1773372056667,0.7850859,2111.2,2110.9,2.0121906]
[1773372058589,0.7850859,2111.2,2111.0,2.0121906]
[1773372059092,0.7850859,2111.2,2111.1,1.818]
[1773372060074,0.32527708,2111.4,2111.2,2.0121906]
[1773372060283,3.01681413,2111.6,2111.2,2.0121906]
[1773372060807,0.002,2111.4,2111.1,1.818]
[1773372061408,0.002,2111.4,2111.1,3.8301906]
[1773372061610,0.002,2111.4,2111.1,1.818]
[1773372061781,1.83483728,2111.4,2110.8,3.345]
[1773372062107,1.83283728,2111.3,2110.3,2.0121906]
[1773372062308,1.83283728,2111.3,2110.4,2.0121906]
[1773372062897,1.83283728,2111.1,2110.5,1.817]
[1773372065113,1.83283728,2110.9,2110.5,1.817]
[1773372067507,3.01722234,2110.8,2110.5,1.817]
[1773372072615,3.01722234,2110.8,2110.7,0.001]
[1773372073900,1.83283728,2110.7,2110.2,2.0121906]
[1773372075221,1.83283728,2110.7,2110.3,1.818]
[1773372076026,3.01733457,2110.6,2110.3,1.818]
[1773372079111,1.18449729,2110.6,2110.3,1.818]
[1773372079311,1.83283728,2110.5,2110.3,1.818]
[1773372081429,3.01742209,2110.5,2110.3,1.818]
[1773372084030,1.18458481,2110.5,2110.3,1.818]
[1773372084211,0.002,2110.9,2110.4,1.89511597]
[1773372084410,0.72252351,2111.9,2111.3,1.89511597]
[1773372084631,0.72252351,2111.9,2111.4,3.71311597]
[1773372084806,0.72252351,2111.9,2111.4,1.818]
[1773372085110,0.72252351,2111.9,2111.0,1.89511597]
[1773372085512,0.7225507,2111.7,2111.0,1.89511597]
[1773372086320,0.7225507,2111.7,2111.1,1.808]
[1773372086907,0.81167249,2111.5,2111.1,1.808]
[1773372087106,0.81167249,2111.5,2110.6,1.89511597]
[1773372087308,0.81367249,2111.5,2110.6,1.89511597]
[1773372087510,0.81167249,2111.3,2110.6,1.89511597]
[1773372088304,0.81167249,2111.3,2110.7,1.809]
[1773372088503,0.81167249,2111.3,2110.7,3.70411597]
[1773372089623,1.18416066,2111.2,2110.7,3.70411597]
[1773372090409,4.73664266,2111.4,2110.8,1.89511597]
[1773372090410,4.73632456,2111.4,2110.8,1.89511597]
[1773372091316,0.81034806,2111.4,2110.7,1.809]
[1773372091537,0.81034806,2111.4,2110.8,1.89511597]
[1773372091538,1.18410458,2111.3,2110.8,1.89511597]
[1773372096129,0.80800183,2111.3,2110.6,1.89511597]
[1773372096330,0.80800183,2111.3,2110.6,1.840084]
[1773372097446,0.80800183,2111.3,2110.7,3.65887648]
[1773372098711,2.00874849,2111.1,2110.7,1.815]
[1773372101629,1.18427285,2111.0,2110.7,3.71011597]
[1773372101828,1.18427285,2111.0,2110.9,0.001]
[1773372102216,3.19302134,2111.0,2110.7,1.815]
[1773372102416,2.00874849,2110.9,2110.7,1.815]
[1773372103833,3.19312287,2110.9,2110.7,1.815]
[1773372108643,3.18821774,2111.1,2110.8,2.05228251]
[1773372109352,3.18821774,2111.1,2110.7,1.815]
[1773372110144,2.00395687,2111.0,2110.7,1.815]
[1773372110840,3.18826605,2111.0,2110.7,1.815]
[1773372111527,1.18430918,2111.0,2110.7,1.815]
[1773372111848,1.18430918,2111.0,2110.7,3.88066531]
[1773372112530,1.18423565,2111.1,2110.8,2.06783872]
[1773372112735,2.0498192,2111.0,2110.7,1.815]
[1773372112925,3.23413721,2111.0,2110.7,1.815]
[1773372113333,2.0498192,2110.9,2110.7,1.815]
[1773372113546,3.23396438,2111.3,2110.8,2.06997463]
[1773372113850,2.0498192,2111.2,2110.8,2.06997463]
[1773372116049,2.0498192,2111.0,2110.6,0.001]
[1773372117350,2.0498192,2111.0,2110.7,1.82]
[1773372118143,3.23414815,2110.9,2110.7,1.82]
[1773372119341,3.23410496,2111.0,2110.7,1.82]
[1773372119755,2.0498192,2110.9,2110.7,1.82]
[1773372120146,2.0498192,2111.1,2110.7,3.27819842]
[1773372120753,2.0498192,2111.1,2110.7,4.51418954]
[1773372121563,2.0498192,2111.1,2110.7,3.32979606]
[1773372121761,2.0498192,2111.1,2110.7,1.82422]
[1773372122162,2.0498192,2111.1,2110.6,0.001]
[1773372122362,2.0498192,2110.9,2110.6,0.001]
[1773372123086,4.73709142,2111.1,2110.7,1.46723297]
[1773372123087,2.0498192,2111.1,2110.7,1.46723297]
[1773372123441,2.0498192,2111.1,2110.8,1.82]
[1773372124568,2.0498192,2110.9,2110.8,1.82]
[1773372124771,2.0498192,2110.9,2110.6,0.001]
[1773372126668,3.23420426,2110.8,2110.6,0.001]
[1773372126844,3.23410643,2111.0,2110.6,0.001]
[1773372127052,1.18428723,2111.0,2110.6,1.47409064]
[1773372127868,1.18428723,2111.0,2110.7,3.29638139]
[1773372128044,1.18426018,2111.1,2110.7,3.29638139]
[1773372128851,2.0498192,2111.1,2110.7,3.29638139]
[1773372129175,2.0498192,2111.1,2110.7,3.34375903]
[1773372129373,6.7860498,2111.4,2110.8,1.4756254]
[1773372129670,4.7362306,2111.4,2110.9,1.4756254]
[1773372129972,2.0498192,2111.3,2110.9,1.4756254]
[1773372130174,2.0498192,2111.3,2110.8,0.001]
[1773372130557,0.002,2110.9,2110.8,0.001]
[1773372131551,0.002,2111.2,2110.9,1.4759584]
[1773372132473,1.18616755,2111.2,2110.9,1.4759584]
[1773372132678,3.23598675,2111.2,2110.9,1.4759584]
[1773372133059,3.23408167,2111.1,2110.8,0.001]
[1773372133465,2.0498192,2111.1,2110.8,0.001]
[1773372133781,3.23403791,2111.1,2110.8,0.001]
[1773372136688,3.23403791,2111.1,2110.8,1.47561525]
[1773372138774,2.0518192,2111.2,2110.8,0.001]
[1773372138972,2.0518192,2111.2,2110.9,1.47083697]
[1773372140082,2.0518192,2111.2,2110.8,1.23273591]
[1773372140291,2.0518192,2111.2,2110.8,0.0483754]
[1773372140597,2.0518192,2111.2,2110.8,0.001]
[1773372141782,3.36772339,2111.1,2110.8,0.001]
[1773372145093,3.36772339,2111.1,2111.0,0.001]
[1773372145401,2.18350664,2111.0,2110.6,0.001]
[1773372145623,2.18350664,2111.0,2110.6,2.65154423]
[1773372145788,2.18350664,2111.0,2110.7,1.46605207]
[1773372146365,2.18350664,2111.0,2110.6,1.23287205]
[1773372146566,2.18350664,2111.0,2110.7,1.829]
[1773372146867,3.36972339,2111.1,2110.7,3.29361894]
[1773372147278,2.18350664,2111.0,2110.7,3.29361894]
[1773372148105,2.18350664,2111.0,2110.7,1.829]
[1773372149293,3.36779952,2111.0,2110.7,1.829]
[1773372150181,2.18350664,2111.0,2110.7,4.47223431]
[1773372151203,2.18350664,2111.0,2110.7,3.28779617]
[1773372151425,1.15361064,2111.5,2110.8,1.4572776]
[1773372151579,2.18350664,2111.6,2111.0,2.0251075]
[1773372151906,0.79767174,2111.5,2110.8,2.0251075]
[1773372152108,2.18350664,2111.4,2110.8,2.0251075]
[1773372152308,2.18350664,2111.4,2110.7,1.829]
[1773372152610,2.18350664,2111.4,2110.9,2.0251075]
[1773372153209,2.18350664,2111.4,2110.7,1.829]
[1773372153509,2.18350664,2111.2,2110.7,5.03854306]
[1773372154209,2.18350664,2111.2,2110.7,1.829]
[1773372155189,2.18350664,2111.2,2110.6,0.001]
[1773372155491,2.18350664,2110.8,2110.5,3.11715308]
[1773372156193,2.18350664,2110.8,2110.4,0.001]
[1773372156506,2.18350664,2110.8,2110.5,1.833]
[1773372157308,2.18350664,2110.6,2110.5,1.833]
[1773372159391,3.36800393,2110.6,2110.5,1.833]
[1773372159604,3.36800393,2110.6,2110.5,1.834]
[1773372160184,3.36800393,2110.6,2110.3,0.001]
[1773372160185,2.18350664,2110.5,2110.3,0.001]
[1773372160701,2.18350664,2110.5,2110.1,0.001]
[1773372161287,2.18350664,2110.5,2110.2,1.834]
[1773372161484,2.18350664,2110.3,2110.2,1.834]
[1773372162122,2.18350664,2110.3,2110.1,0.001]
[1773372163719,1.18472182,2110.2,2110.1,0.001]
[1773372163884,3.36821684,2110.3,2110.1,1.835]
[1773372164086,3.36821684,2110.3,2110.0,0.001]
[1773372165720,3.36821684,2110.3,2110.1,1.834]
[1773372167304,3.38071337,2110.3,2110.1,1.834]
[1773372167608,2.19600317,2110.2,2110.1,1.834]
[1773372168202,2.19600317,2110.2,2110.0,0.001]
[1773372169226,2.19600317,2110.1,2110.0,0.001]
[1773372169829,2.19600317,2110.1,2110.0,1.836]
[1773372175021,3.38078114,2110.1,2110.0,1.836]
[1773372175226,2.17292814,2110.0,2109.9,0.001]
[1773372176536,2.17292814,2110.0,2109.9,1.837]
[1773372177137,3.35776735,2110.0,2109.7,5.69483335]
[1773372177819,2.17292814,2110.0,2109.7,5.69483335]
[1773372178834,2.17292814,2110.0,2109.8,1.837]
[1773372179039,3.35776799,2110.0,2109.8,1.837]
[1773372180639,1.4e-07,2110.0,2109.8,1.837]
[1773372180940,1.4e-07,2110.0,2109.9,1.838]
[1773372181140,0.79967174,2110.2,2109.7,5.69483335]
[1773372181330,2.97259988,2110.2,2109.7,5.69483335]
[1773372181639,2.17292814,2110.1,2109.7,5.69483335]
[1773372182633,2.17292814,2109.9,2109.7,3.4538838]
[1773372182942,2.17292814,2109.9,2109.8,1.838]
[1773372184524,2.17292814,2109.9,2109.7,3.4538838]
[1773372184838,3.35785273,2109.9,2109.7,3.4538838]
[1773372185039,3.35785273,2109.9,2109.6,0.001]
[1773372186015,2.17292814,2109.9,2109.6,0.001]
[1773372186218,0.002,2110.0,2109.8,0.001]
[1773372186219,3.35976848,2110.0,2109.8,0.001]
[1773372186955,1.20636711,2110.9,2110.0,2.24094955]
[1773372187150,1.20636711,2110.9,2110.2,2.24094955]
[1773372187327,1.20636711,2110.9,2110.4,2.24094955]
[1773372190345,2.45868848,2110.8,2110.4,2.24094955]
[1773372191448,1.18438506,2110.8,2110.5,2.24094955]
[1773372191930,2.46072575,2110.8,2110.5,2.24094955]
[1773372192520,1.27634069,2110.7,2110.3,4.08094955]
[1773372192743,1.27634069,2110.7,2110.4,2.24094955]
[1773372193454,1.18438506,2110.8,2110.4,2.24094955]
[1773372193651,2.46166531,2110.8,2110.4,2.24094955]
[1773372193853,1.27728025,2110.7,2110.3,1.84]
[1773372194222,1.27728025,2110.7,2110.1,2.24094955]
[1773372194545,1.27817392,2110.5,2110.1,2.24094955]
[1773372195432,1.27817392,2110.5,2110.2,1.838]
[1773372195834,1.27817392,2110.5,2110.2,4.07894955]
[1773372197456,2.46275697,2110.5,2110.2,4.07894955]
[1773372198125,2.17292814,2110.4,2110.0,0.04739336]
[1773372198349,2.17292814,2110.4,2110.0,2.24194955]
[1773372198750,0.002,2110.3,2110.0,2.24194955]
[1773372199660,0.002,2110.3,2110.1,1.839]
[1773372199846,0.002,2110.3,2110.1,4.07994955]
[1773372203855,0.002,2110.3,2110.1,1.839]
[1773372204158,0.002,2110.3,2110.2,2.29132128]
[1773372207367,2.33620831,2110.2,2110.0,0.001]
[1773372207531,2.33620831,2110.2,2110.1,1.84]
[1773372207870,2.33820831,2110.3,2110.1,1.84]
[1773372209681,0.002,2110.3,2110.1,1.84]
[1773372209852,0.002,2110.3,2110.2,2.29132128]
[1773372210885,0.002,2110.3,2110.1,4.13132128]
[1773372211290,0.002,2110.3,2110.2,0.001]
[1773372213097,2.33820831,2110.3,2110.2,0.001]
[1773372214753,0.002,2110.3,2110.2,0.001]
[1773372216979,2.33820831,2110.3,2110.1,1.84]
[1773372217159,0.002,2110.3,2110.1,1.84]
[1773372217356,0.002,2110.3,2110.1,4.13132128]
[1773372218673,0.002,2110.3,2110.1,5.31607686]
[1773372218884,0.002,2110.3,2110.1,5.31609343]
[1773372220382,0.002,2110.3,2110.2,2.29132128]
[1773372225490,0.002,2110.7,2110.3,2.44543027]
[1773372225991,0.002,2110.7,2110.3,2.44643027]
[1773372226195,0.002,2111.3,2110.7,2.44543027]
[1773372226498,1.18610974,2111.3,2110.9,2.44543027]
[1773372226689,0.002,2111.3,2110.9,2.44543027]
[1773372226886,1.18610783,2111.3,2110.9,2.44543027]
[1773372227588,1.18610783,2111.3,2111.0,2.44543027]
[1773372228601,3.57899844,2111.3,2111.0,2.44543027]
[1773372229685,3.57899844,2111.3,2110.8,3.02634116]
[1773372229893,3.57899844,2111.3,2110.8,1.842]
[1773372229894,2.39289061,2111.2,2110.8,1.842]
[1773372230496,2.39289061,2111.2,2110.8,4.28743027]
[1773372233304,3.57708202,2111.2,2110.9,2.3410497]
[1773372233883,1.18419141,2111.2,2110.9,2.3410497]
[1773372236202,2.29472079,2111.2,2110.9,2.3410497]
[1773372237610,2.29672079,2111.3,2110.9,2.3410497]
[1773372237807,2.29672079,2111.3,2111.0,1.844]
[1773372238110,2.29672079,2111.3,2110.7,3.52544477]
[1773372239008,1.18416066,2111.2,2110.8,2.3410497]
[1773372239186,3.47888145,2111.2,2111.0,0.001]
[1773372239392,0.002,2111.1,2111.0,0.001]
[1773372239595,0.002,2111.1,2111.0,4.1860497]
[1773372240814,2.29672079,2111.3,2111.0,4.1860497]
[1773372241114,0.002,2111.5,2111.2,2.3410497]
[1773372242197,0.002,2111.5,2110.9,2.3410497]
[1773372242198,2.29472079,2111.4,2110.9,2.3410497]
[1773372242582,1.18600048,2111.5,2110.9,0.79837868]
[1773372242786,1.18600048,2111.5,2111.0,2.3410497]
[1773372243012,0.002,2111.5,2111.0,2.3410497]
[1773372243233,0.002,2111.5,2111.2,2.3410497]
[1773372245520,2.29472079,2111.8,2111.3,2.3410497]
[1773372246031,2.29472079,2111.9,2111.4,2.3410497]
[1773372246185,2.29472079,2112.1,2111.4,2.3410497]
[1773372246387,2.29472079,2112.0,2111.2,3.52517074]
[1773372246628,2.29472079,2112.0,2111.3,2.3410497]
[1773372247505,1.18376817,2111.9,2111.3,2.3410497]
[1773372247709,2.29472079,2111.8,2111.3,2.3410497]
[1773372249831,1.18388028,2111.7,2111.3,2.3410497]
[1773372250841,3.47860107,2111.7,2111.3,2.3410497]
[1773372252839,0.002,2111.5,2111.3,2.3410497]
[1773372256527,1.18371212,2112.0,2111.4,2.3410497]
[1773372256727,3.47841056,2112.1,2111.6,2.3410497]
[1773372256932,3.47841056,2112.1,2111.8,2.3410497]
[1773372257126,1.18368977,2112.1,2111.8,2.3410497]
[1773372257327,2.29472079,2112.1,2111.8,2.3410497]
[1773372258340,1.18364323,2112.2,2111.8,2.3410497]
[1773372258341,1.18351586,2112.4,2111.8,2.3410497]
[1773372258735,1.18351586,2112.4,2112.0,2.3410497]
[1773372259050,3.79870609,2112.8,2112.0,2.3410497]
[1773372259345,2.29472079,2112.7,2111.9,2.3410497]
[1773372259944,2.29472079,2112.3,2112.0,1.847]
[1773372260107,2.29472079,2112.3,2111.7,2.3410497]
[1773372260749,1.18360003,2112.2,2111.7,2.3410497]
[1773372261147,3.69943512,2112.2,2111.7,2.3410497]
[1773372261348,1.18360003,2112.2,2111.9,2.48550905]
[1773372261856,2.51583509,2112.1,2111.6,2.48550905]
[1773372262038,2.51583509,2112.1,2111.7,1.847]
[1773372262350,2.51583509,2112.1,2111.7,4.33250905]
[1773372262557,1.18357691,2112.3,2111.9,2.48550905]
[1773372262764,2.51583509,2112.3,2111.7,4.33250905]
[1773372263461,2.51583509,2112.3,2111.8,2.48550905]
[1773372263961,4.73417601,2112.4,2111.8,2.48550905]
[1773372264257,1.1834188,2112.6,2112.0,2.48550905]
[1773372265262,2.51583509,2112.7,2112.2,2.48550905]
[1773372265439,3.69918261,2112.7,2112.3,1.847]
[1773372266456,2.51583509,2112.6,2112.3,1.847]
[1773372267344,2.83654236,2112.8,2112.4,2.48550905]
[1773372267548,0.002,2112.5,2112.4,2.48550905]
[1773372268523,0.002,2112.7,2112.4,2.48550905]